[Event "*** Titled Tuesday Blitz"]
[Site "Chess.com"]
[Date "2020.05.12"]
[Round "9"]
[White "talaicito"]
[Black "zmeeed67"]
[Result "0-1"]
[WhiteElo "2237"]
[BlackElo "2410"]
[TimeControl "180+1"]
[EndTime "11:42:22 PDT"]
[Termination "zmeeed67 won on time"]

1. d4 {[%clk 0:03:00.9]} 1... d5 {[%clk 0:02:53.9]} 2. Bf4 {[%clk 0:03:00.7]}
2... c5 {[%clk 0:02:53.8]} 3. e3 {[%clk 0:03:00.6]} 3... Nc6 {[%clk 0:02:54.3]}
4. Nc3 {[%clk 0:03:00.8]} 4... a6 {[%clk 0:02:51.6]} 5. Nf3 {[%clk 0:02:59.1]}
5... Nf6 {[%clk 0:02:43.1]} 6. a3 {[%clk 0:02:43.3]} 6... cxd4 {[%clk
0:02:41.2]} 7. exd4 {[%clk 0:02:43.1]} 7... Bf5 {[%clk 0:02:39.8]} 8. Bd3 {[%clk
0:02:39.7]} 8... Bxd3 {[%clk 0:02:38.9]} 9. Qxd3 {[%clk 0:02:40.6]} 9... e6
{[%clk 0:02:39.3]} 10. O-O {[%clk 0:02:35.8]} 10... Bd6 {[%clk 0:02:39.6]} 11.
Ne5 {[%clk 0:02:32.9]} 11... O-O {[%clk 0:02:33.9]} 12. Rfe1 {[%clk 0:02:12.9]}
12... Rc8 {[%clk 0:02:28.1]} 13. g4 {[%clk 0:01:54.3]} 13... Bxe5 {[%clk
0:02:22.2]} 14. dxe5 {[%clk 0:01:53.4]} 14... Nd7 {[%clk 0:02:11.7]} 15. Rad1
{[%clk 0:01:35.1]} 15... Na5 {[%clk 0:02:00.6]} 16. Ne2 {[%clk 0:01:20.9]} 16...
Nc4 {[%clk 0:01:53.6]} 17. Qg3 {[%clk 0:00:59]} 17... Nxb2 {[%clk 0:01:49.9]}
18. Rb1 {[%clk 0:00:58.8]} 18... Nc4 {[%clk 0:01:41.8]} 19. Rxb7 {[%clk
0:00:53.1]} 19... Nc5 {[%clk 0:01:42]} 20. Rb4 {[%clk 0:00:40.1]} 20... a5
{[%clk 0:01:39.5]} 21. Rb5 {[%clk 0:00:35.4]} 21... Ne4 {[%clk 0:01:36.8]} 22.
Qd3 {[%clk 0:00:23.5]} 22... Qh4 {[%clk 0:01:19.5]} 23. Ng3 {[%clk 0:00:17]}
23... Qxg4 {[%clk 0:01:15.2]} 24. Rxe4 {[%clk 0:00:11.8]} 24... dxe4 {[%clk
0:01:12.6]} 25. Qxe4 {[%clk 0:00:12.2]} 25... h5 {[%clk 0:01:00.2]} 26. Kf1
{[%clk 0:00:09]} 26... h4 {[%clk 0:00:56.9]} 27. h3 {[%clk 0:00:02]} 27... Qxh3+
{[%clk 0:00:52.6]} 28. Qg2 {[%clk 0:00:02.3]} 28... Qxg2+ {[%clk 0:00:51.4]} 29.
Kxg2 {[%clk 0:00:03.2]} 29... hxg3 {[%clk 0:00:52.3]} 30. Bxg3 {[%clk
0:00:01.7]} 30... Nxa3 {[%clk 0:00:52.5]} 31. Rxa5 {[%clk 0:00:01.9]} 31... Nxc2
{[%clk 0:00:52.9]} 0-1

[Event "*** Titled Tuesday Blitz"]
[Site "Chess.com"]
[Date "2020.05.12"]
[Round "9"]
[White "AndrewMaco"]
[Black "Spartakus1975"]
[Result "0-1"]
[WhiteElo "2555"]
[BlackElo "2717"]
[TimeControl "180+1"]
[EndTime "11:42:23 PDT"]
[Termination "Spartakus1975 won on time"]

1. e4 {[%clk 0:03:00.9]} 1... e6 {[%clk 0:02:59.2]} 2. d4 {[%clk 0:03:00]} 2...
d5 {[%clk 0:02:58.6]} 3. Nc3 {[%clk 0:03:00.6]} 3... Nf6 {[%clk 0:02:57.7]} 4.
e5 {[%clk 0:02:59.1]} 4... Nfd7 {[%clk 0:02:57.5]} 5. f4 {[%clk 0:02:59.5]} 5...
c5 {[%clk 0:02:58.1]} 6. Nf3 {[%clk 0:02:58.4]} 6... Nc6 {[%clk 0:02:58.6]} 7.
Be3 {[%clk 0:02:58.4]} 7... Be7 {[%clk 0:02:58.4]} 8. Qd2 {[%clk 0:02:57.9]}
8... O-O {[%clk 0:02:59]} 9. dxc5 {[%clk 0:02:57.2]} 9... Nxc5 {[%clk 0:02:59]}
10. O-O-O {[%clk 0:02:56.7]} 10... a6 {[%clk 0:02:54.9]} 11. Nd4 {[%clk
0:02:37.7]} 11... Bd7 {[%clk 0:02:50.7]} 12. h4 {[%clk 0:02:33.1]} 12... b5
{[%clk 0:02:50.5]} 13. Nxc6 {[%clk 0:02:31.7]} 13... Bxc6 {[%clk 0:02:49.7]} 14.
Ne2 {[%clk 0:02:32.1]} 14... Ne4 {[%clk 0:02:49.5]} 15. Qe1 {[%clk 0:02:32.1]}
15... b4 {[%clk 0:02:47.5]} 16. Nd4 {[%clk 0:02:30.6]} 16... Bb5 {[%clk
0:02:47.5]} 17. Bd3 {[%clk 0:02:29.6]} 17... Qa5 {[%clk 0:02:41.3]} 18. Kb1
{[%clk 0:02:29]} 18... Bc4 {[%clk 0:02:25.3]} 19. Nb3 {[%clk 0:02:21.3]} 19...
Qc7 {[%clk 0:02:18.2]} 20. Bd4 {[%clk 0:02:08.1]} 20... a5 {[%clk 0:02:16.6]}
21. Nd2 {[%clk 0:01:39.1]} 21... Nxd2+ {[%clk 0:02:04.9]} 22. Qxd2 {[%clk
0:01:40]} 22... a4 {[%clk 0:02:03.2]} 23. b3 {[%clk 0:01:40.3]} 23... Bxd3
{[%clk 0:01:53.2]} 24. Qxd3 {[%clk 0:01:35.5]} 24... Rfc8 {[%clk 0:01:45.4]} 25.
h5 {[%clk 0:01:28]} 25... Bc5 {[%clk 0:01:28.9]} 26. Bb2 {[%clk 0:01:26.6]}
26... axb3 {[%clk 0:01:26.6]} 27. axb3 {[%clk 0:01:23]} 27... Qa7 {[%clk
0:01:25.5]} 28. h6 {[%clk 0:01:15]} 28... Be3 {[%clk 0:01:05.8]} 29. c4 {[%clk
0:00:02.7]} 29... dxc4 {[%clk 0:00:52.9]} 0-1

[Event "*** Titled Tuesday Blitz"]
[Site "Chess.com"]
[Date "2020.05.12"]
[Round "9"]
[White "cukin84"]
[Black "MacDaddyMac"]
[Result "1-0"]
[WhiteElo "2135"]
[BlackElo "2255"]
[TimeControl "180+1"]
[EndTime "11:42:24 PDT"]
[Termination "cukin84 won by checkmate"]

1. e4 {[%clk 0:03:00.9]} 1... e6 {[%clk 0:03:00.3]} 2. d4 {[%clk 0:03:00.3]}
2... d5 {[%clk 0:03:01.2]} 3. Nc3 {[%clk 0:03:00.2]} 3... Nf6 {[%clk 0:03:01.1]}
4. e5 {[%clk 0:03:00]} 4... Nfd7 {[%clk 0:03:01]} 5. f4 {[%clk 0:03:00.3]} 5...
c5 {[%clk 0:03:01.4]} 6. Nf3 {[%clk 0:03:00.2]} 6... Nc6 {[%clk 0:03:01.7]} 7.
Be3 {[%clk 0:03:00.3]} 7... cxd4 {[%clk 0:03:01.4]} 8. Nxd4 {[%clk 0:02:59.7]}
8... Bc5 {[%clk 0:03:02]} 9. Nce2 {[%clk 0:02:56.6]} 9... Qb6 {[%clk 0:03:00.8]}
10. c3 {[%clk 0:02:41.7]} 10... Qxb2 {[%clk 0:02:51.2]} 11. Rb1 {[%clk
0:02:26.8]} 11... Qxa2 {[%clk 0:02:50.6]} 12. g3 {[%clk 0:02:13.3]} 12... Bxd4
{[%clk 0:02:24]} 13. Nxd4 {[%clk 0:02:08.8]} 13... Qa5 {[%clk 0:02:24]} 14. Nb5
{[%clk 0:02:06.2]} 14... O-O {[%clk 0:02:13.3]} 15. Ra1 {[%clk 0:02:05]} 15...
Qd8 {[%clk 0:02:12.3]} 16. Nd6 {[%clk 0:02:03.8]} 16... b6 {[%clk 0:02:06.6]}
17. Bb5 {[%clk 0:02:01.8]} 17... Qc7 {[%clk 0:02:00.7]} 18. Qa4 {[%clk
0:01:56.2]} 18... Ndb8 {[%clk 0:01:53.6]} 19. O-O {[%clk 0:01:47.3]} 19... Bd7
{[%clk 0:01:52.5]} 20. Qc2 {[%clk 0:01:31.5]} 20... Na5 {[%clk 0:01:42.9]} 21.
Bd3 {[%clk 0:01:25.9]} 21... g6 {[%clk 0:01:33.5]} 22. f5 {[%clk 0:01:16.8]}
22... exf5 {[%clk 0:01:26.6]} 23. Bxf5 {[%clk 0:01:02.4]} 23... Bxf5 {[%clk
0:01:24.5]} 24. Nxf5 {[%clk 0:01:02.1]} 24... Qxe5 {[%clk 0:01:20.5]} 25. Nh6+
{[%clk 0:00:58.4]} 25... Kg7 {[%clk 0:01:19.4]} 26. Bd4 {[%clk 0:00:58.4]} 26...
Qxd4+ {[%clk 0:01:19.7]} 27. cxd4 {[%clk 0:00:58]} 27... Kxh6 {[%clk 0:01:19.6]}
28. Qc7 {[%clk 0:00:41.2]} 28... Nbc6 {[%clk 0:01:06.7]} 29. Rxf7 {[%clk
0:00:38.7]} 29... Rxf7 {[%clk 0:01:06.9]} 30. Qxf7 {[%clk 0:00:38.6]} 30... Rd8
{[%clk 0:00:37.3]} 31. Rf1 {[%clk 0:00:35.9]} 31... b5 {[%clk 0:00:27.8]} 32. h4
{[%clk 0:00:34.1]} 32... b4 {[%clk 0:00:27.6]} 33. h5 {[%clk 0:00:34]} 33...
Kxh5 {[%clk 0:00:26.1]} 34. Qxh7+ {[%clk 0:00:33.4]} 34... Kg5 {[%clk
0:00:26.4]} 35. Qh4# {[%clk 0:00:31.9]} 1-0

[Event "*** Titled Tuesday Blitz"]
[Site "Chess.com"]
[Date "2020.05.12"]
[Round "9"]
[White "allvim"]
[Black "tamarozi99"]
[Result "1-0"]
[WhiteElo "2275"]
[BlackElo "1987"]
[TimeControl "180+1"]
[EndTime "11:42:25 PDT"]
[Termination "allvim won by resignation"]

1. e4 {[%clk 0:03:00.9]} 1... c5 {[%clk 0:02:59.1]} 2. Nf3 {[%clk 0:03:01.2]}
2... Nc6 {[%clk 0:02:58.9]} 3. d4 {[%clk 0:02:55.6]} 3... cxd4 {[%clk
0:02:56.9]} 4. Nxd4 {[%clk 0:02:56.5]} 4... g6 {[%clk 0:02:57.2]} 5. Nc3 {[%clk
0:02:56.3]} 5... Bg7 {[%clk 0:02:56.7]} 6. Be3 {[%clk 0:02:57]} 6... Nf6 {[%clk
0:02:56.1]} 7. f3 {[%clk 0:02:57.1]} 7... O-O {[%clk 0:02:55.3]} 8. Bc4 {[%clk
0:02:57.7]} 8... Qb6 {[%clk 0:02:54.3]} 9. Ncb5 {[%clk 0:02:02.2]} 9... a6
{[%clk 0:02:20.7]} 10. Nf5 {[%clk 0:01:37.3]} 10... Qa5+ {[%clk 0:01:49.4]} 11.
Bd2 {[%clk 0:01:30.9]} 11... Qd8 {[%clk 0:01:49.3]} 12. Nxg7 {[%clk 0:01:25.1]}
12... axb5 {[%clk 0:01:48.7]} 13. Bh6 {[%clk 0:01:20.4]} 13... bxc4 {[%clk
0:01:48.6]} 14. O-O {[%clk 0:01:11.3]} 14... Kh8 {[%clk 0:01:33.5]} 15. f4
{[%clk 0:00:39.3]} 15... Rg8 {[%clk 0:01:32.6]} 16. e5 {[%clk 0:00:39.8]} 16...
Ne4 {[%clk 0:01:10.9]} 17. Qe2 {[%clk 0:00:32.8]} 17... Qb6+ {[%clk 0:00:45.6]}
18. Kh1 {[%clk 0:00:31.8]} 18... Nc5 {[%clk 0:00:41.7]} 19. f5 {[%clk
0:00:31.3]} 19... Rxg7 {[%clk 0:00:36]} 20. Bxg7+ {[%clk 0:00:30.9]} 20... Kxg7
{[%clk 0:00:36.1]} 21. f6+ {[%clk 0:00:31.8]} 21... Kg8 {[%clk 0:00:31.1]} 22.
Qe3 {[%clk 0:00:28.9]} 22... Ne6 {[%clk 0:00:21.3]} 23. Qxb6 {[%clk 0:00:29]}
23... Nxe5 {[%clk 0:00:17.4]} 24. fxe7 {[%clk 0:00:26.7]} 1-0

[Event "*** Titled Tuesday Blitz"]
[Site "Chess.com"]
[Date "2020.05.12"]
[Round "9"]
[White "GMartin_Petrov"]
[Black "Kostya26"]
[Result "1-0"]
[WhiteElo "2567"]
[BlackElo "2394"]
[TimeControl "180+1"]
[EndTime "11:42:29 PDT"]
[Termination "GMartin_Petrov won on time"]

1. e4 {[%clk 0:03:00.9]} 1... c5 {[%clk 0:02:58.3]} 2. Nf3 {[%clk 0:03:00.5]}
2... Nc6 {[%clk 0:02:58.3]} 3. d4 {[%clk 0:03:01.1]} 3... cxd4 {[%clk
0:02:59.2]} 4. Nxd4 {[%clk 0:03:01.5]} 4... e5 {[%clk 0:02:59.7]} 5. Nb5 {[%clk
0:03:00.7]} 5... d6 {[%clk 0:02:59.8]} 6. c4 {[%clk 0:02:54.6]} 6... Be7 {[%clk
0:02:58.8]} 7. N1c3 {[%clk 0:02:53.9]} 7... a6 {[%clk 0:02:58.9]} 8. Na3 {[%clk
0:02:53.3]} 8... f5 {[%clk 0:02:59.8]} 9. exf5 {[%clk 0:02:50.1]} 9... Bxf5
{[%clk 0:02:58.4]} 10. Bd3 {[%clk 0:02:50.2]} 10... Be6 {[%clk 0:02:54.2]} 11.
O-O {[%clk 0:02:47.3]} 11... Nf6 {[%clk 0:02:53.6]} 12. Nc2 {[%clk 0:02:43.3]}
12... O-O {[%clk 0:02:52.1]} 13. Nd5 {[%clk 0:02:36.1]} 13... Rc8 {[%clk
0:02:08.3]} 14. Be3 {[%clk 0:02:15]} 14... e4 {[%clk 0:01:36]} 15. Be2 {[%clk
0:02:05.2]} 15... Ne5 {[%clk 0:01:34.6]} 16. Nd4 {[%clk 0:02:02.6]} 16... Bd7
{[%clk 0:01:08.4]} 17. Nf4 {[%clk 0:01:39.6]} 17... Qe8 {[%clk 0:00:46.4]} 18.
Rc1 {[%clk 0:01:24.2]} 18... Bd8 {[%clk 0:00:36.6]} 19. Qb3 {[%clk 0:01:20.2]}
19... g5 {[%clk 0:00:27.6]} 20. c5+ {[%clk 0:01:02.4]} 20... Kh8 {[%clk
0:00:20.2]} 21. Nfe6 {[%clk 0:01:01.9]} 21... Rf7 {[%clk 0:00:13.1]} 22. cxd6
{[%clk 0:00:52.3]} 22... Rxc1 {[%clk 0:00:08.1]} 23. Rxc1 {[%clk 0:00:52.3]}
23... g4 {[%clk 0:00:07.8]} 24. Bf4 {[%clk 0:00:46]} 24... Ng6 {[%clk
0:00:05.7]} 25. Nxd8 {[%clk 0:00:45.5]} 25... Qxd8 {[%clk 0:00:04.7]} 26. Qxf7
{[%clk 0:00:44.4]} 26... Nxf4 {[%clk 0:00:03]} 27. Rc7 {[%clk 0:00:39.7]} 27...
Nxe2+ {[%clk 0:00:02.2]} 28. Nxe2 {[%clk 0:00:39.1]} 1-0

[Event "*** Titled Tuesday Blitz"]
[Site "Chess.com"]
[Date "2020.05.12"]
[Round "9"]
[White "Bagirova"]
[Black "Mimsychess"]
[Result "0-1"]
[WhiteElo "2196"]
[BlackElo "2334"]
[TimeControl "180+1"]
[EndTime "11:42:30 PDT"]
[Termination "Mimsychess won by resignation"]

1. d4 {[%clk 0:03:00.9]} 1... Nf6 {[%clk 0:02:59.2]} 2. Nf3 {[%clk 0:03:01.3]}
2... e6 {[%clk 0:02:59.5]} 3. Bf4 {[%clk 0:03:01.4]} 3... b6 {[%clk 0:02:56.9]}
4. e3 {[%clk 0:03:01.3]} 4... Bb7 {[%clk 0:02:56.7]} 5. Bd3 {[%clk 0:03:01.8]}
5... c5 {[%clk 0:02:56.8]} 6. c3 {[%clk 0:03:01.6]} 6... Be7 {[%clk 0:02:55.9]}
7. Nbd2 {[%clk 0:03:01.3]} 7... cxd4 {[%clk 0:02:55.6]} 8. exd4 {[%clk
0:03:00.7]} 8... d6 {[%clk 0:02:55.6]} 9. O-O {[%clk 0:03:00.9]} 9... Nbd7
{[%clk 0:02:54.9]} 10. Qe2 {[%clk 0:03:00.4]} 10... O-O {[%clk 0:02:54.3]} 11.
h3 {[%clk 0:03:00.3]} 11... Re8 {[%clk 0:02:52.4]} 12. Rfe1 {[%clk 0:02:58.9]}
12... Bf8 {[%clk 0:02:51.3]} 13. Qf1 {[%clk 0:02:55.6]} 13... Qc7 {[%clk
0:02:45.1]} 14. Bh2 {[%clk 0:02:49.3]} 14... g6 {[%clk 0:02:42.9]} 15. Rad1
{[%clk 0:02:46.4]} 15... Rad8 {[%clk 0:02:38.2]} 16. Ne4 {[%clk 0:02:41.3]}
16... Nxe4 {[%clk 0:02:36.1]} 17. Bxe4 {[%clk 0:02:42.2]} 17... Nf6 {[%clk
0:02:29.6]} 18. Bxb7 {[%clk 0:02:37.7]} 18... Qxb7 {[%clk 0:02:30.5]} 19. Qe2
{[%clk 0:02:25.3]} 19... Bh6 {[%clk 0:02:21.7]} 20. Nd2 {[%clk 0:02:19.9]} 20...
b5 {[%clk 0:02:18.4]} 21. Ne4 {[%clk 0:02:00.8]} 21... Nxe4 {[%clk 0:02:17.1]}
22. Qxe4 {[%clk 0:01:59.1]} 22... Qxe4 {[%clk 0:02:17]} 23. Rxe4 {[%clk
0:01:59.7]} 23... d5 {[%clk 0:02:14.7]} 24. Re2 {[%clk 0:01:53.3]} 24... Rc8
{[%clk 0:02:14.1]} 25. a3 {[%clk 0:01:51.3]} 25... a5 {[%clk 0:02:12]} 26. Bd6
{[%clk 0:01:44.3]} 26... Rc4 {[%clk 0:02:07.4]} 27. Bc5 {[%clk 0:01:40.9]} 27...
Bf8 {[%clk 0:02:05.7]} 28. Bxf8 {[%clk 0:01:35.8]} 28... Kxf8 {[%clk 0:02:06.6]}
29. Re3 {[%clk 0:01:31.5]} 29... Rec8 {[%clk 0:01:58.2]} 30. Rdd3 {[%clk
0:01:29.9]} 30... b4 {[%clk 0:01:54.9]} 31. axb4 {[%clk 0:01:28.8]} 31... axb4
{[%clk 0:01:55.8]} 32. cxb4 {[%clk 0:01:20.7]} 32... Rxb4 {[%clk 0:01:56.7]} 33.
b3 {[%clk 0:01:21.1]} 33... Rc2 {[%clk 0:01:49.2]} 34. f4 {[%clk 0:01:10.3]}
34... Rb2 {[%clk 0:01:43.1]} 35. g4 {[%clk 0:01:00.9]} 35... Rb8 {[%clk
0:01:42.2]} 36. Rc3 {[%clk 0:00:58.7]} 36... Ra8 {[%clk 0:01:41.4]} 37. Re1
{[%clk 0:00:44.9]} 37... Raa2 {[%clk 0:01:40.5]} 38. f5 {[%clk 0:00:44.8]} 38...
Rg2+ {[%clk 0:01:34.1]} 39. Kh1 {[%clk 0:00:44.5]} 39... gxf5 {[%clk 0:01:16.5]}
40. gxf5 {[%clk 0:00:45.4]} 40... exf5 {[%clk 0:01:15.9]} 41. Rc5 {[%clk
0:00:35.5]} 41... f4 {[%clk 0:01:11.6]} 42. Rxd5 {[%clk 0:00:35.3]} 42... Rh2+
{[%clk 0:00:57.8]} 43. Kg1 {[%clk 0:00:34.4]} 43... Rag2+ {[%clk 0:00:58.7]} 44.
Kf1 {[%clk 0:00:34.6]} 44... f3 {[%clk 0:00:59.6]} 0-1

[Event "*** Titled Tuesday Blitz"]
[Site "Chess.com"]
[Date "2020.05.12"]
[Round "9"]
[White "Vamostodorecto"]
[Black "SHIVACalypso"]
[Result "0-1"]
[WhiteElo "2431"]
[BlackElo "2327"]
[TimeControl "180+1"]
[EndTime "11:42:37 PDT"]
[Termination "SHIVACalypso won by checkmate"]

1. d4 {[%clk 0:03:00.9]} 1... e6 {[%clk 0:03:00.2]} 2. c4 {[%clk 0:03:00.3]}
2... Nf6 {[%clk 0:02:59.8]} 3. Nc3 {[%clk 0:03:00.7]} 3... Bb4 {[%clk
0:03:00.1]} 4. Nf3 {[%clk 0:03:01.3]} 4... O-O {[%clk 0:02:58.6]} 5. Bg5 {[%clk
0:03:00.6]} 5... d5 {[%clk 0:02:50.5]} 6. cxd5 {[%clk 0:03:01.5]} 6... exd5
{[%clk 0:02:49.9]} 7. e3 {[%clk 0:03:02]} 7... h6 {[%clk 0:02:45.6]} 8. Bh4
{[%clk 0:03:01.3]} 8... g5 {[%clk 0:02:44.9]} 9. Bg3 {[%clk 0:02:43.9]} 9... Ne4
{[%clk 0:02:41.8]} 10. Rc1 {[%clk 0:02:40.3]} 10... f5 {[%clk 0:02:37.4]} 11.
Bd3 {[%clk 0:02:26]} 11... h5 {[%clk 0:02:14]} 12. h4 {[%clk 0:01:58.9]} 12...
f4 {[%clk 0:02:05.9]} 13. Bxe4 {[%clk 0:01:33.5]} 13... dxe4 {[%clk 0:02:02.8]}
14. Nxg5 {[%clk 0:01:12]} 14... Bxc3+ {[%clk 0:02:00.7]} 15. bxc3 {[%clk
0:01:11.7]} 15... fxg3 {[%clk 0:02:00.4]} 16. Qxh5 {[%clk 0:01:07.1]} 16...
gxf2+ {[%clk 0:01:57.7]} 17. Kd2 {[%clk 0:01:01]} 17... Qe7 {[%clk 0:01:52.6]}
18. Qg6+ {[%clk 0:00:53.4]} 18... Qg7 {[%clk 0:01:51]} 19. Qxe4 {[%clk 0:00:54]}
19... Nc6 {[%clk 0:01:44.6]} 20. Rb1 {[%clk 0:00:45.2]} 20... Kh8 {[%clk
0:01:25]} 21. Qd5 {[%clk 0:00:37]} 21... Bg4 {[%clk 0:01:03.7]} 22. h5 {[%clk
0:00:19.8]} 22... Rad8 {[%clk 0:00:59.4]} 23. Qc5 {[%clk 0:00:20.4]} 23... b6
{[%clk 0:00:54.4]} 24. Qb5 {[%clk 0:00:15.8]} 24... Rf5 {[%clk 0:00:52]} 25.
Qxc6 {[%clk 0:00:11.3]} 25... Rxg5 {[%clk 0:00:47.9]} 26. h6 {[%clk 0:00:11.1]}
26... Qf7 {[%clk 0:00:45.2]} 27. Rbf1 {[%clk 0:00:08.8]} 27... Re8 {[%clk
0:00:43.9]} 28. Kd3 {[%clk 0:00:06.7]} 28... Bf5+ {[%clk 0:00:41.3]} 29. Kd2
{[%clk 0:00:05.9]} 29... Qxa2+ {[%clk 0:00:40]} 30. Kd1 {[%clk 0:00:03.4]} 30...
Qc2# {[%clk 0:00:39.6]} 0-1

[Event "*** Titled Tuesday Blitz"]
[Site "Chess.com"]
[Date "2020.05.12"]
[Round "9"]
[White "Reader777"]
[Black "2nd_life"]
[Result "1-0"]
[WhiteElo "2604"]
[BlackElo "2431"]
[TimeControl "180+1"]
[EndTime "11:42:39 PDT"]
[Termination "Reader777 won on time"]

1. d4 {[%clk 0:03:00.9]} 1... Nf6 {[%clk 0:02:59.8]} 2. c4 {[%clk 0:03:00.7]}
2... e6 {[%clk 0:02:59.8]} 3. g3 {[%clk 0:03:00.4]} 3... c5 {[%clk 0:02:59.3]}
4. Nf3 {[%clk 0:03:00.2]} 4... cxd4 {[%clk 0:02:58.5]} 5. Nxd4 {[%clk
0:03:00.6]} 5... d5 {[%clk 0:02:58.8]} 6. Bg2 {[%clk 0:03:00.2]} 6... e5 {[%clk
0:02:58.8]} 7. Nf3 {[%clk 0:03:00.6]} 7... d4 {[%clk 0:02:58.8]} 8. O-O {[%clk
0:03:00.7]} 8... Nc6 {[%clk 0:02:59]} 9. e3 {[%clk 0:03:01.1]} 9... Be7 {[%clk
0:02:59]} 10. exd4 {[%clk 0:03:01.1]} 10... exd4 {[%clk 0:02:59.9]} 11. b4
{[%clk 0:03:01.3]} 11... Bxb4 {[%clk 0:02:54.5]} 12. Nxd4 {[%clk 0:02:59.8]}
12... Nxd4 {[%clk 0:02:18.7]} 13. Qa4+ {[%clk 0:02:58.9]} 13... Kf8 {[%clk
0:01:47]} 14. Qxb4+ {[%clk 0:02:57.5]} 14... Kg8 {[%clk 0:01:47.3]} 15. Qd2
{[%clk 0:02:34.1]} 15... Bg4 {[%clk 0:01:29.8]} 16. f3 {[%clk 0:02:20.9]} 16...
Bf5 {[%clk 0:00:50]} 17. Rd1 {[%clk 0:02:17.9]} 17... Ne6 {[%clk 0:00:48]} 18.
Qxd8+ {[%clk 0:02:15.2]} 18... Rxd8 {[%clk 0:00:46.4]} 19. Rxd8+ {[%clk
0:02:14.3]} 19... Nxd8 {[%clk 0:00:47.3]} 20. Be3 {[%clk 0:02:12.7]} 20... a6
{[%clk 0:00:34.5]} 21. Nc3 {[%clk 0:02:10]} 21... h6 {[%clk 0:00:34.3]} 22. Rd1
{[%clk 0:02:07.7]} 22... Kh7 {[%clk 0:00:33.4]} 23. g4 {[%clk 0:02:05.5]} 23...
Be6 {[%clk 0:00:33.2]} 24. Nd5 {[%clk 0:02:01.6]} 24... Nc6 {[%clk 0:00:23.5]}
25. Nxf6+ {[%clk 0:01:50.3]} 25... gxf6 {[%clk 0:00:24.4]} 26. Rb1 {[%clk
0:01:49.7]} 26... Bxc4 {[%clk 0:00:21.4]} 27. Rxb7 {[%clk 0:01:48.6]} 27... Bxa2
{[%clk 0:00:20.8]} 28. f4 {[%clk 0:01:47.3]} 28... Rc8 {[%clk 0:00:17.4]} 29.
Rb6 {[%clk 0:01:41]} 29... Ne7 {[%clk 0:00:12]} 30. Rxf6 {[%clk 0:01:31.9]}
30... a5 {[%clk 0:00:09.6]} 31. f5 {[%clk 0:01:29.6]} 31... Ng8 {[%clk
0:00:05.6]} 32. Ra6 {[%clk 0:01:29]} 32... Rc3 {[%clk 0:00:04.4]} 33. Bd4 {[%clk
0:01:16.9]} 33... Rc4 {[%clk 0:00:03]} 34. Be5 {[%clk 0:01:15.4]} 34... Rxg4
{[%clk 0:00:02.7]} 35. Rxa5 {[%clk 0:01:13.6]} 35... Bc4 {[%clk 0:00:01.7]} 36.
Bg3 {[%clk 0:01:10.5]} 36... Rg5 {[%clk 0:00:01.6]} 37. Kf2 {[%clk 0:01:09.1]}
37... Bd3 {[%clk 0:00:01.5]} 38. Bh3 {[%clk 0:01:05.4]} 38... Ne7 {[%clk
0:00:01.4]} 39. Ra7 {[%clk 0:01:00.6]} 1-0

[Event "*** Titled Tuesday Blitz"]
[Site "Chess.com"]
[Date "2020.05.12"]
[Round "9"]
[White "BIG_Pirate"]
[Black "Klavdia_Nik"]
[Result "1-0"]
[WhiteElo "2296"]
[BlackElo "2094"]
[TimeControl "180+1"]
[EndTime "11:42:39 PDT"]
[Termination "BIG_Pirate won on time"]

1. Nf3 {[%clk 0:03:00.9]} 1... Nf6 {[%clk 0:02:58.8]} 2. c4 {[%clk 0:03:00.7]}
2... c5 {[%clk 0:02:59]} 3. Nc3 {[%clk 0:03:00.8]} 3... b6 {[%clk 0:02:57.4]} 4.
g3 {[%clk 0:03:00.5]} 4... Bb7 {[%clk 0:02:56.2]} 5. Bg2 {[%clk 0:03:01]} 5...
g6 {[%clk 0:02:56.5]} 6. b3 {[%clk 0:02:57]} 6... Bg7 {[%clk 0:02:55.5]} 7. Bb2
{[%clk 0:02:57.5]} 7... O-O {[%clk 0:02:55.8]} 8. O-O {[%clk 0:02:57]} 8... d5
{[%clk 0:02:56.2]} 9. Nxd5 {[%clk 0:02:55.7]} 9... Nxd5 {[%clk 0:02:51.9]} 10.
Bxg7 {[%clk 0:02:56.6]} 10... Kxg7 {[%clk 0:02:33]} 11. cxd5 {[%clk 0:02:57.5]}
11... Qxd5 {[%clk 0:02:31.9]} 12. d4 {[%clk 0:02:57.1]} 12... cxd4 {[%clk
0:02:28.4]} 13. Qxd4+ {[%clk 0:02:56.7]} 13... Qxd4 {[%clk 0:02:28.3]} 14. Nxd4
{[%clk 0:02:57.6]} 14... Bxg2 {[%clk 0:02:28.5]} 15. Kxg2 {[%clk 0:02:58.5]}
15... e5 {[%clk 0:02:27.9]} 16. Nb5 {[%clk 0:02:47.9]} 16... a6 {[%clk
0:02:23.3]} 17. Nc7 {[%clk 0:02:42.5]} 17... Ra7 {[%clk 0:02:23.1]} 18. Rac1
{[%clk 0:02:42.8]} 18... Nd7 {[%clk 0:02:15.7]} 19. Rfd1 {[%clk 0:02:34.5]}
19... Nf6 {[%clk 0:02:15.2]} 20. Rd6 {[%clk 0:02:20.6]} 20... b5 {[%clk
0:02:11.4]} 21. Rxa6 {[%clk 0:02:18.2]} 21... Rxa6 {[%clk 0:02:06.6]} 22. Nxa6
{[%clk 0:02:19.1]} 22... Ra8 {[%clk 0:01:56.8]} 23. Nb4 {[%clk 0:02:18.3]} 23...
Ne4 {[%clk 0:01:34.6]} 24. f3 {[%clk 0:02:14.6]} 24... Nd6 {[%clk 0:01:24.9]}
25. Rc6 {[%clk 0:02:12.8]} 25... Nf5 {[%clk 0:01:22.8]} 26. Rc5 {[%clk 0:02:03]}
26... f6 {[%clk 0:00:48.5]} 27. Rxb5 {[%clk 0:01:57.4]} 27... h5 {[%clk
0:00:43.7]} 28. Kf2 {[%clk 0:01:55.6]} 28... Rd8 {[%clk 0:00:38.5]} 29. Rc5
{[%clk 0:01:53.2]} 29... Rd4 {[%clk 0:00:20.3]} 30. Nd3 {[%clk 0:01:43.3]} 30...
e4 {[%clk 0:00:18.7]} 31. fxe4 {[%clk 0:01:43.3]} 31... Rxe4 {[%clk 0:00:19.1]}
32. a4 {[%clk 0:01:41]} 32... Nd4 {[%clk 0:00:18.1]} 33. Nc1 {[%clk 0:01:37]}
33... f5 {[%clk 0:00:13.6]} 34. a5 {[%clk 0:01:36.2]} 34... Re6 {[%clk
0:00:11.4]} 35. b4 {[%clk 0:01:32]} 35... h4 {[%clk 0:00:09.2]} 36. b5 {[%clk
0:01:29.1]} 36... Rd6 {[%clk 0:00:05]} 37. a6 {[%clk 0:01:26.6]} 37... Ne6
{[%clk 0:00:04.2]} 38. a7 {[%clk 0:01:18.5]} 38... Rd8 {[%clk 0:00:02]} 39. Rc6
{[%clk 0:01:14.7]} 39... Nd4 {[%clk 0:00:01.6]} 40. Rc7+ {[%clk 0:01:14.7]}
40... Kf6 {[%clk 0:00:01.9]} 41. b6 {[%clk 0:01:15.3]} 41... Ne6 {[%clk
0:00:01.6]} 42. Rc6 {[%clk 0:01:14.6]} 1-0